Workbook

Sheet Design
A2: (5/2010)
B4: Landowner: | I4: Designed by: | N4: Date: | O4: =TODAY() -> 2020-08-13
B5: County: | I5: Checked by: | N5: Date:
B7: Waterway Type: | I7: Retardance Values:
I8: Capacity = | K8: =+Ret_Cap -> C | M8: Stability = | O8: =+Ret_Stab -> D
B9: Solve for:
J10: =IF(SUM(AO15:AO22)=8,"","RECOMPUTE") -> 
B12: W/W ID | C12: Reach | G12: Design Q | H12: Slope | I12: =IF(WW_Solve="Width","Depth", IF(WW_Type="Trapezoidal","Bottom Width","Top Width")) -> Top Width | J12: =IF(WW_Type = "Trapezoidal","Side Slope Ratio", " ") ->  | K12: =IF(WW_Solve="Depth","Depth",IF(WW_Type="Trapezoidal","Bottom Width","")) -> Depth | L12: Capacity | O12: Stability | P12: Seed Area
C13: Station | F13: Station | L13: TW2 | M13: D2 | N13: V2 | O13: V1 | Z13: Goal Seek Values | AF13: Compute | AG13: Values Used in Calculations | AO13: Has been Recalc.? | AP13: Recalc. | AQ13: TW1 | AR13: D1 | AS13: Parabolic Shape
G14: (cfs) | H14: (%) | I14: (ft) | J14: =IF(WW_Type ="Trapezoidal","(Z:1)", " ") ->  | K14: =IF(WW_Solve="Depth","(ft)",IF(WW_Type="Trapezoidal","(ft)","")) -> (ft) | L14: (ft) | M14: (ft) | N14: (fps) | O14: (fps) | P14: (ac) | T14: n1 | U14: n2 | V14: q1act | W14: q2act | X14: VR1 | Y14: VR2 | Z14: D1 | AA14: D2 | AB14: TW1 | AC14: TW2 | AD14: BW | AF14: Yes = 1 | AG14: Des. Q | AH14: Slope | AI14: D/Wdth | AJ14: SS | AK14: Type | AL14: Solve | AM14: Cap | AN14: Stab. | AO14: Yes = 1 | AP14: Subset | AQ14: (ft) | AR14: (ft) | AS14: Factor
B15: 1 | C15: 18 | E15: to | F15: 132 | G15: 26 | H15: 7 | I15: 26 | K15: =IF(ISNUMBER(AF15),IF(WW_Solve="Depth",M15,IF(WW_Type="Trapezoidal",AD15,"")),"") -> 0.5870765667 | L15: =IF(ISNUMBER(AF15),IF(WW_Type="Trapezoidal",IF(WW_Solve="Depth",$I15+2*$J15*M15,$K15+2*$J15*M15),IF(WW_Solve="Depth",$I15,AC15)),"") -> 26 | M15: =IF(ISNUMBER(AF15),IF(WW_Solve="Depth",AA15,I15),"") -> 0.5870765667 | N15: =IF(ISNUMBER(AO15),IF(ISNUMBER(AF15),IF(WW_Type = "Parabolic",$G15/AreaP(M15,L15),IF(WW_Solve = "Depth",$G15/AreaT(M15,$I15,$J15),$G15/AreaT(M15,$K15,$J15))),""),"*****") -> 2.555032998 | O15: =IF(ISNUMBER(AO15),IF(ISNUMBER(AF15),IF(WW_Type = "Parabolic",$G15/AreaP(AR15,AQ15),IF(WW_Solve = "Depth",$G15/AreaT(AR15,$I15,$J15),$G15/AreaT(AR15,$K15,$J15))),""),"*****") -> 3.332075815 | P15: =IF(ISNUMBER(AF15),L15*ABS(F15-C15)/43560,"") -> 0.06804407713 | T15: =EXP(VLOOKUP(Ret_Stab,Ret_Table,2)*(0.01329*LN(X15)^2-0.09543*LN(X15)+0.2971)-4.16) -> 0.05621333852 | U15: =EXP(VLOOKUP(Ret_Cap,Ret_Table,2)*(0.01329*LN(Y15)^2-0.09543*LN(Y15)+0.2971)-4.16) -> 0.08247858916 | V15: =IF(WW_Type="Parabolic",ManningsQP(T15,AR15,AB15,H15),IF(WW_Solve="Depth",ManningsQT($T15,$Z15,$I15,$J15,$H15),ManningsQT(T15,Z15,AD15,J15,H15))) -> 26.00006952 | W15: =IF(WW_Type="Parabolic",IF(WW_Solve="Depth",ManningsQP(U15,AA15,L15,H15),ManningsQP(U15,M15,AC15,H15)),IF(WW_Solve="Depth",ManningsQT(U15,AA15,I15,J15,H15),ManningsQT($U15,M15,AD15,J15,H15))) -> 26.00038905 | X15: =IF(WW_Type="Parabolic",VRP($G15,$AR15,$AB15),IF(WW_Solve="Depth",VRT($G15,Z15,$I15,J15),VRT($G15,Z15,AD15,J15))) -> 1.091302283 | Y15: =IF(WW_Type="Parabolic",IF(WW_Solve="Depth",VRP($G15,$AA15,$I15),VRP(G15,I15,AC15)),IF(WW_Solve="Depth",VRT($G15,$AA15,$I15,$J15),VRT($G15,I15,AD15,J15))) -> 0.9986422448 | Z15: 1 | AA15: 0.5870765667 | AB15: 23.79764021 | AC15: 40 | AD15: 16 | AF15: 1 | AG15: 26 | AH15: 7 | AI15: 26 | AK15: Parabolic | AL15: Depth | AM15: C | AN15: D | AO15: =IF(AG15=G15,IF(H15=AH15,IF(AI15=I15,IF(J15=AJ15,IF(ISNUMBER(AP15),1,""),""),""),""),"") -> 1 | AP15: =+IF(ISNUMBER(AF15),IF(AK15=WW_Type, IF(AL15=WW_Solve,IF(AM15=Ret_Cap,IF(AN15=Ret_Stab,1,""),""),""),""),1) -> 1 | AQ15: =IF(ISNUMBER($AF15),IF(WW_Type="Trapezoidal",IF(WW_Solve="Depth",$I15+2*$J15*$AR15,$K15+2*$J15*$AR15),$AB15),"") -> 23.79764021 | AR15: =IF(ISNUMBER($AF15),IF(WW_Type = "Trapezoidal",$Z15,(AB15/AS15)^2),"") -> 0.4918309316 | AS15: =+L15/SQRT(M15) -> 33.9332905
E16: to | L16: =IF(ISNUMBER(AF16),IF(WW_Type="Trapezoidal",IF(WW_Solve="Depth",$I16+2*$J16*M16,$K16+2*$J16*M16),IF(WW_Solve="Depth",$I16,AC16)),"") ->  | P16: =IF(ISNUMBER(AF16),L16*ABS(F16-C16)/43560,"") ->  | T16: =EXP(VLOOKUP(Ret_Stab,Ret_Table,2)*(0.01329*LN(X16)^2-0.09543*LN(X16)+0.2971)-4.16) ->  | U16: =EXP(VLOOKUP(Ret_Cap,Ret_Table,2)*(0.01329*LN(Y16)^2-0.09543*LN(Y16)+0.2971)-4.16) ->  | Z16: 1 | AA16: 1.184147685 | AB16: 46.9473144 | AC16: 40 | AD16: 16 | AO16: 1 | AP16: =+IF(ISNUMBER(AF16),IF(AK16=WW_Type, IF(AL16=WW_Solve,IF(AM16=Ret_Cap,IF(AN16=Ret_Stab,1,""),""),""),""),1) -> 1 | AR16: =IF(ISNUMBER($AF16),IF(WW_Type = "Trapezoidal",$Z16,(AB16/AS16)^2),"") ->  | AS16: =+L16/SQRT(M16) -> 
E17: to | Z17: 1 | AA17: 1.466905361 | AB17: 56.81969345 | AC17: 40 | AD17: 16 | AO17: 1 | AP17: =+IF(ISNUMBER(AF17),IF(AK17=WW_Type, IF(AL17=WW_Solve,IF(AM17=Ret_Cap,IF(AN17=Ret_Stab,1,""),""),""),""),1) -> 1
E18: to | Z18: 1 | AA18: 0.5876017278 | AB18: 27.0940906 | AC18: 40 | AD18: 16 | AO18: 1 | AP18: 1
E19: to | Z19: 1 | AA19: 0.7517652672 | AB19: 18.44903618 | AC19: 40 | AD19: 16 | AO19: 1 | AP19: 1
E20: to | Z20: 1 | AA20: 0.5928251387 | AB20: 18.45080309 | AC20: 40 | AD20: 16 | AO20: 1 | AP20: 1
E21: to | Z21: 0.5711839429 | AA21: 1 | AB21: 40 | AC21: 40 | AD21: 34.8496794 | AO21: 1 | AP21: 1
E22: to | Z22: 0.4800473159 | AA22: 1 | AB22: 40 | AC22: 40 | AD22: 54.93164664 | AO22: 1 | AP22: 1
C24: Total Waterway Length= | H24: =ABS(SUM(F15:F22)-SUM(C15:D22)) -> 114 | J24: feet | L24: Total Waterway Area = | P24: =ROUNDUP(SUM(P15:P22),1) -> 0.1
B26: Warnings:
B27: =+IF(ISNUMBER(N15),IF(N15<1.5,"Velocity is less than 1.5 fps in Line 1",IF(O15>5,"Velocity is greater than 5 fps in Line 1","")),"") -> 
B28: =+IF(ISNUMBER(N16),IF(N16<1.5,"Velocity is less than 1.5 fps in Line 2",IF(O16>5,"Velocity is greater than 5 fps in Line 2","")),"") -> 
B29: =+IF(ISNUMBER(N17),IF(N17<1.5,"Velocity is less than 1.5 fps in Line 3",IF(O17>5,"Velocity is greater than 5 fps in Line 3","")),"") -> 
B30: =+IF(ISNUMBER(N18),IF(N18<1.5,"Velocity is less than 1.5 fps in Line 4",IF(O18>5,"Velocity is greater than 5 fps in Line 4","")),"") -> 
B31: =+IF(ISNUMBER(N19),IF(N19<1.5,"Velocity is less than 1.5 fps in Line 5",IF(O19>5,"Velocity is greater than 5 fps in Line 5","")),"") -> 
B32: =+IF(ISNUMBER(N20),IF(N20<1.5,"Velocity is less than 1.5 fps in Line 6",IF(O20>5,"Velocity is greater than 5 fps in Line 6","")),"") -> 
B33: =+IF(ISNUMBER(N21),IF(N21<1.5,"Velocity is less than 1.5 fps in Line 7",IF(O21>5,"Velocity is greater than 5 fps in Line 7","")),"") -> 
B34: =+IF(ISNUMBER(N22),IF(N22<1.5,"Velocity is less than 1.5 fps in Line 8",IF(O22>5,"Velocity is greater than 5 fps in Line 8","")),"") -> 
A81: =+A2 -> (5/2010)
B83: Landuser: | D83: =IF(ISBLANK(+D4),"",(D4)) ->  | I83: Designed by: | K83: =IF(ISBLANK(+K4),"",(K4)) ->  | L83: =IF(ISBLANK(+L4),"",(L4)) ->  | N83: Date: | O83: =TODAY() -> 2020-08-13
B84: County: | C84: =IF(ISBLANK(+C5),"",(C5)) ->  | I84: Checked by: | N84: Date:
B86: Waterway Type: | E86: =+WW_Type -> Parabolic | I86: Retardance Values:
I87: Capacity = | K87: =+Ret_Cap -> C | M87: Stability = | O87: =+Ret_Stab -> D
B88: Solve for: | E88: =+WW_Solve -> Depth
J89: =IF(ISBLANK(+J10),"",(J10)) ->  | K89: =IF(ISBLANK(+K10),"",(K10)) ->  | L89: =IF(ISBLANK(+L10),"",(L10)) -> 
B91: W/W ID | C91: Reach | G91: Design Q | H91: Slope | I91: =IF(WW_Solve="Width","Depth", IF(WW_Type="Trapezoidal","Bottom Width","Top Width")) -> Top Width | J91: =IF(WW_Type = "Trapezoidal","Side Slope Ratio", " ") ->  | K91: =IF(WW_Solve="Depth","Depth",IF(WW_Type="Trapezoidal","Bottom Width","")) -> Depth | L91: Capacity | O91: Stability | P91: Seed Area
C92: Station | F92: Station | L92: TW2 | M92: D2 | N92: V2 | O92: V1
G93: (cfs) | H93: (%) | I93: (ft) | J93: =IF(WW_Type ="Trapezoidal","(Z:1)", " ") ->  | K93: =IF(WW_Solve="Depth","(ft)",IF(WW_Type="Trapezoidal","(ft)","")) -> (ft) | L93: (ft) | M93: (ft) | N93: (fps) | O93: (fps) | P93: (ac)
B94: =IF(ISBLANK(+B15),"",(B15)) -> 1 | C94: =IF(ISBLANK(+C15),"",(C15)) -> 18 | D94: =IF(ISBLANK(+D15),"",(D15)) ->  | E94: to | F94: =IF(ISBLANK(+F15),"",(F15)) -> 132 | G94: 26 | H94: 7 | I94: 26 | K94: 0.5870765667 | L94: 26 | M94: 0.5870765667 | N94: 2.555032998 | O94: 3.332075815 | P94: 0.06804407713
B95: =IF(ISBLANK(+B16),"",(B16)) ->  | E95: to | G95: =IF(ISBLANK(+G16),"",(G16)) -> 
E96: to
E97: to
E98: to
E99: to
E100: to
E101: to
C103: Total Waterway Length= | H103: =IF(ISBLANK(+H24),"",(H24)) -> 114 | I103: =IF(ISBLANK(+I24),"",(I24)) ->  | J103: feet | L103: Total Waterway Area = | P103: =IF(ISBLANK(+P24),"",(P24)) -> 0.1
B105: Warnings:
B106: =IF(ISBLANK(+B27),"",(B27)) -> 

Sheet Survey
A4: Landuser: | C4: =IF(ISBLANK(Landuser),"",Landuser) ->  | H4: Designed by: | J4: =IF(ISBLANK(Designer),"",Designer) ->  | N4: Date: | O4: =TODAY() -> 2020-08-13
A5: County: | B5: =IF(ISBLANK(County),"",County) ->  | H5: Checked by: | N5: Date:
A6: Surveyed by: | N6: Date:
A7: TBM Descr.:
A9: Station | B9: BS | C9: HI | D9: FS | E9: ELEV | M9: Centerline | V9: counter | X9: Station | Y9: Average Ground | Z9: Low Bank | AB9: Low Bank
A10: TBM | C10: =IF(ISBLANK(A10),"",+E10+B10) -> 0 | G10: RR | H10: Offset | I10: Elev | J10: RR | K10: Offset | L10: Elev | M10: RR | N10: Elev | O10: RR | P10: Offset | Q10: Elev | R10: RR | S10: Offset | T10: Elev | U10: Comments | V10: 0 | W10: lowbank | AB10: Potentials
C11: =IF(ISBLANK(A11),"",IF(ISNUMBER(B11),E11+B11,C10)) ->  | E11: =IF(ISBLANK(A11),"",IF(ISNUMBER(D11),C10-D11,E10)) ->  | I11: =IF(ISNUMBER(G11),IF(ISNUMBER($A11),$C11-G11,""),"") ->  | L11: =IF(ISNUMBER(J11),IF(ISNUMBER($A11),$C11-J11,""),"") ->  | N11: =IF(ISNUMBER(M11),IF(ISNUMBER($A11),$C11-M11,""),"") ->  | Q11: =IF(ISNUMBER(O11),IF(ISNUMBER($A11),$C11-O11,""),"") ->  | T11: =IF(ISNUMBER(R11),IF(ISNUMBER($A11),$C11-R11,""),"") ->  | V11: =+IF(ISNUMBER(OFFSET(A11,V10,0)),V10,IF(ISNUMBER(OFFSET(A11,V10+1,0)),V10+1,IF(ISNUMBER(OFFSET(A11,V10+2,0)),V10+2,V10+3))) -> 3 | W11: =IF(MIN(AB11,AC11,AD11,AE11)>0,MIN(AB11,AC11,AD11,AE11),"") ->  | X11: =IF(ISBLANK(OFFSET(A11,V11,0)),"",OFFSET(A11,V11,0)) ->  | Y11: =IF(ISNUMBER(X11),VLOOKUP($X11,$A11:$W28,14,FALSE),"") ->  | Z11: =IF(ISNUMBER(X11),VLOOKUP($X11,$A11:$W28,23,FALSE),"") ->  | AB11: =+IF(H11>12,I11,"") ->  | AC11: =+IF(K11>12,L11,"") ->  | AD11: =+IF(P11>12,Q11,"") ->  | AE11: =+IF(S11>12,T11,"") -> 
C12: =IF(ISBLANK(A12),"",IF(ISNUMBER(B12),E12+B12,C11)) ->  | E12: =IF(ISBLANK(A12),"",IF(ISNUMBER(D12),C11-D12,E11)) ->  | V12: =+IF(ISNUMBER(OFFSET(A12,V11,0)),V11,IF(ISNUMBER(OFFSET(A12,V11+1,0)),V11+1,IF(ISNUMBER(OFFSET(A12,V11+2,0)),V11+2,V11+3))) -> 6 | Z12: =IF(ISNUMBER(X12),VLOOKUP($X12,$A12:$W29,23,FALSE),"") ->  | AB12: =+IF(H12>12,I12,"") ->  | AC12: =+IF(K12>12,L12,"") ->  | AD12: =+IF(P12>12,Q12,"") ->  | AE12: =+IF(S12>12,T12,"") -> 
V13: 9
V14: 12
V15: 15
V16: 18
V17: 21
V18: 24
V19: 27
V20: 30
V21: 33
V22: 36
V23: 39
V24: 42
V25: 45
V26: 48
V27: 51 | Y27: =IF(ISNUMBER(X27),VLOOKUP($X27,$A27:$V44,14,FALSE),"") -> 
V28: 54
I29: =IF(ISNUMBER(G29),IF(ISNUMBER($A29),$C29-G29,""),"") ->  | Q29: =IF(ISNUMBER(O29),IF(ISNUMBER($A29),$C29-O29,""),"") ->  | T29: =IF(ISNUMBER(R29),IF(ISNUMBER($A29),$C29-R29,""),"") ->  | V29: 57
V30: 60
V31: 63
V32: 66
V33: 69
V34: 72
V35: 75
L36: =IF(ISNUMBER(J36),IF(ISNUMBER($A36),$C36-J36,""),"") ->  | V36: 78
V37: 81
V38: 84
V39: 87
V40: 90
V41: 93
V42: 96
V43: 99
C44: =IF(ISBLANK(A44),"",IF(ISNUMBER(B44),E44+B44,C43)) ->  | E44: =IF(ISBLANK(A44),"",IF(ISNUMBER(D44),C43-D44,E43)) ->  | I44: =IF(ISNUMBER(G44),IF(ISNUMBER($A44),$C44-G44,""),"") ->  | L44: =IF(ISNUMBER(J44),IF(ISNUMBER($A44),$C44-J44,""),"") ->  | Q44: =IF(ISNUMBER(O44),IF(ISNUMBER($A44),$C44-O44,""),"") ->  | T44: =IF(ISNUMBER(R44),IF(ISNUMBER($A44),$C44-R44,""),"") ->  | V44: =+IF(ISNUMBER(OFFSET(A44,V43,0)),V43,IF(ISNUMBER(OFFSET(A44,V43+1,0)),V43+1,IF(ISNUMBER(OFFSET(A44,V43+2,0)),V43+2,V43+3))) -> 102 | W44: =IF(MIN(AB44,AC44,AD44,AE44)>0,MIN(AB44,AC44,AD44,AE44),"") ->  | X44: =IF(ISBLANK(OFFSET(A44,V44,0)),"",OFFSET(A44,V44,0)) ->  | Z44: =IF(ISNUMBER(X44),VLOOKUP($X44,$A44:$W61,23,FALSE),"") ->  | AB44: =+IF(H44>12,I44,"") ->  | AC44: =+IF(K44>12,L44,"") ->  | AD44: =+IF(P44>12,Q44,"") ->  | AE44: =+IF(S44>12,T44,"") -> 
V45: 105
V46: 108
V47: 111
V48: 114
V49: 117

Sheet Cost Est.
A1: Cost Estimate
A2: Grassed Waterway
B4: Landuser: | C4: =IF(ISBLANK(Landuser),"",Landuser) ->  | E4: Designed by: | G4: =IF(ISBLANK(Designer),"",Designer) ->  | I4: Date: | J4: =TODAY() -> 2020-08-13
B5: County: | C5: =IF(ISBLANK(County),"",County) ->  | E5: Checked by: | I5: Date:
A8: Item | D8: Quantity | G8: Unit Cost | K8: Total Cost
A9: Waterway Construction | D9: =+Design!H24 -> 114 | E9: feet | F9: @ | H9: per | I9: foot | J9: = | K9: =+G9*D9 -> 0
A10: Seeding/Mulching | D10: =+Design!P24 -> 0.1 | E10: acres | F10: @ | H10: per | I10: acre | J10: = | K10: =+G10*D10 -> 0
A11: =+'IN-ENG-14P'!C48 -> 6 | B11: -inch Plastic Drainage Tubing | D11: =+IF(ISNUMBER('IN-ENG-14P'!G48),'IN-ENG-14P'!G48,0) -> 1343 | E11: feet | F11: @ | H11: per | I11: foot | J11: = | K11: =+G11*D11 -> 0
A12: =+'IN-ENG-14P'!C50 -> --- | B12: -inch Plastic Drainage Tubing | D12: =+IF(ISNUMBER('IN-ENG-14P'!G50),'IN-ENG-14P'!G50,0) -> 0 | E12: feet | F12: @ | H12: per | I12: foot | J12: = | K12: =+G12*D12 -> 0
A13: Erosion Control Blanket/Mulch Netting | D13: =+IF(ISBLANK(Defaults!L14),"--",Defaults!L14) -> 0 | E13: sq. yds. | F13: @ | H13: per | I13: sq. yd. | J13: = | K13: =+G13*D13 -> 0
A14: Other:
F15: =IF(ISBLANK(A15),"","@") ->  | H15: =+IF(ISBLANK(A15),"","per") ->  | I15: =+IF(ISBLANK(E15),"",E15) ->  | J15: =+IF(ISBLANK(A15),"","=") ->  | K15: =IF(ISBLANK(A15),"",+G15*D15) -> 
F16: =IF(ISBLANK(A16),"","@") ->  | H16: =+IF(ISBLANK(A16),"","per") ->  | I16: =+IF(ISBLANK(E16),"",E16) ->  | J16: =+IF(ISBLANK(A16),"","=") ->  | K16: =IF(ISBLANK(A16),"",+G16*D16) -> 
I24: Subtotal: | K24: =+SUM(K9:K23) -> 0
I26: +10% | K26: =+K24*0.1 -> 0
I28: Total: | K28: =CEILING(+K24+K26,100) -> 0

Sheet IN-ENG-57L
B7: U. S. DEPARTMENT OF AGRICULTURE
B8: NATURAL RESOURCES CONSERVATION SERVICE
B10: IN COOPERATION WITH
D12: =IF(ISBLANK(County),"",County) ->  | G12: COUNTY SOIL AND WATER CONSERVATION DISTRICT
B13: INDIANA
C15: DETAIL PLANS FOR
E16: (PRACTICE) | F16: GRASSED WATERWAY
D18: (COOPERATOR) | F18: Boyers
D20: (LOCATION) | F20: WW1 | M20: SEC. | O20: T | Q20: R
C22: NOTICE TO THE COOPERATOR AND CONTRACTOR
C23: NO REPRESENTATION IS MADE BY THE NATURAL RESOURCES CONSERVATION SERVICE AS TO THE EXISTENCE OR NONEXISTENCE OF UNDERGROUND HAZARDS. AT LEAST 2 WORKING DAYS PRIOR TO THE START OF CONSTRUCTION, THE OWNERS OF PIPELINES OR OTHER UNDERGROUND UTILITIES MUST BE NOTIFIED OF THE PENDING CONSTRUCTION. UTILITIES THAT PARTICIPATE WITH THE INDIANA UNDERGROUND PLANT PROTECTION SERVICES, INC., CAN BE NOTIFIED BY CALLING 1-800-382-5544, TOLL FREE or 811.
K25: INDEX OF DRAWINGS
K27: TITLE | S27: SHEET NO.
K28: COVER SHEET | S28: 1
B29: CONSTRUCTION DATA
C30: LAYOUT BY:
G31: DATE:
C32: CONTRACTOR NAME AND ADDRESS:
C36: CONSTRUCTION COMPLETED (DATE):
D37: NO CHANGES DURING CONSTRUCTION
C38: AS-BUILTS SUBMITTED BY:
E39: TITLE:
A40: DRAWING NO. IN-ENG-57L.XLS (REVISED 5/08) | B40: CONSTRUCTION APPROVAL SIGNATURES
C41: CONSTRUCTION (DOES) (DOES NOT) MEET STANDARDS & SPECIFICATIONS. | L41: PREPARED BY:
G42: DATE: | L42: =IF(ISBLANK(Designer),"",Designer) ->  | R42: DATE: | S42: =TODAY() -> 2020-08-13
C43: TITLE: | L43: TITLE:
C44: AS-BUILTS REVIEWED AND APPROVED BY: | L44: REVIEWED AND APPROVED BY:
G45: DATE: | R45: DATE:
C46: TITLE: | L46: TITLE:
C47: ALL INSTALLATION REPORTS HAVE BEEN RECEIVED AND REVIEWED AND | L47: REVIEWED AND CONCURRED BY:
C48: SEEDING HAS BEEN COMPLETED TO MEET STANDARDS & SPECIFICATIONS: | R48: DATE:
G49: DATE: | L49: TITLE:
C50: TITLE: | Q50: SHEET 1 OF
S52: IN-ENG-57L

Sheet IN-ENG-42
T3: N
P35: 12
K36: LANDUSER | M36: =IF(ISBLANK(Landuser),"",Landuser) -> 
K37: =IF(ISBLANK(County),"",County) ->  | O37: COUNTY SWCD, INDIANA
K38: LOCATION | M38: =+IF(ISBLANK(Location),"",Location) -> WW1
L39: Sec. | M39: =+IF(ISBLANK(section),"",section) ->  | O39: T | P39: =+IF(ISBLANK(Township),"",Township) ->  | Q39: =IF(ISBLANK(twp),"",twp) ->  | S39: R | T39: =IF(ISBLANK(range),"",range) -> 
A40: DRAWING NO. IN-ENG-42.XLS (REV. 8/99)
J41: PLAN VIEW
C45: TBM Description: | J45: U.S. DEPARTMENT OF AGRICULTURE
C46: =+IF(ISBLANK(Survey!C7),"",Survey!C7) ->  | J46: NATURAL RESOURCES CONSERVATION SERVICE
K47: Designed | L47: =IF(ISBLANK(Designer),"",Designer) ->  | O47: Date | Q47: Approved by | V47: Date
O48: =TODAY() -> 2020-08-13
K49: Drawn | L49: =IF(ISBLANK(Designer),"",Designer) ->  | O49: =TODAY() -> 2020-08-13 | Q49: Title
C51: TBM Elevation = | F51: =+IF(ISBLANK(Survey!E10),"",Survey!E10) ->  | K51: Traced | Q51: Title
K53: Checked | Q53: Sheet | S53: Drawing No.
Q54: No.
Q55: of
T56: IN-ENG-42

Sheet IN-ENG-14P
B1: CONSTRUCTION DATA
B3: W/W | D3: Reach | G3: Length | H3: Grade | J3: Design | K3: Design | N3: Seeding
B4: ID | J4: Depth | K4: Top Width | N4: Width
J5: (D) | K5: (T)
D6: Sta. | F6: Sta. | G6: feet | H6: % | J6: feet | K6: feet | N6: feet
B7: =IF(ISBLANK(Design!B15),"",Design!B15) -> 1 | D7: =IF(ISBLANK(Design!C15),"",Design!C15) -> 18 | E7: to | F7: =IF(ISBLANK(Design!F15),"",Design!F15) -> 132 | G7: =IF(ISBLANK(Design!C15),"",ABS(Design!F15-Design!C15)) -> 114 | H7: =IF(ISBLANK(Design!H15),"",Design!H15) -> 7 | J7: =IF(ISBLANK(Design!M15),"",Design!M15) -> 0.5870765667 | K7: =IF(ISBLANK(Design!L15),"",Design!L15) -> 26 | N7: =IF(ISBLANK(K7),"",K7) -> 26 | AA7: =IF(ISNUMBER(N7),G7*N7,"") -> 2964
B8: =IF(ISBLANK(Design!B16),"",Design!B16) ->  | D8: =IF(ISBLANK(Design!C16),"",Design!C16) ->  | E8: to | F8: =IF(ISBLANK(Design!F16),"",Design!F16) ->  | G8: =IF(ISBLANK(Design!C16),"",ABS(Design!F16-Design!C16)) ->  | H8: =IF(ISBLANK(Design!H16),"",Design!H16) ->  | J8: =IF(ISBLANK(Design!M16),"",Design!M16) ->  | K8: =IF(ISBLANK(Design!L16),"",Design!L16) ->  | N8: =IF(ISBLANK(K8),"",K8) ->  | AA8: =IF(ISNUMBER(N8),G8*N8,"") -> 
B9: =IF(ISBLANK(Design!B17),"",Design!B17) ->  | D9: =IF(ISBLANK(Design!C17),"",Design!C17) ->  | E9: to | F9: =IF(ISBLANK(Design!F17),"",Design!F17) ->  | G9: =IF(ISBLANK(Design!C17),"",ABS(Design!F17-Design!C17)) ->  | H9: =IF(ISBLANK(Design!H17),"",Design!H17) ->  | J9: =IF(ISBLANK(Design!M17),"",Design!M17) ->  | K9: =IF(ISBLANK(Design!L17),"",Design!L17) -> 
B10: =IF(ISBLANK(Design!B18),"",Design!B18) ->  | D10: =IF(ISBLANK(Design!C18),"",Design!C18) ->  | E10: to | F10: =IF(ISBLANK(Design!F18),"",Design!F18) ->  | G10: =IF(ISBLANK(Design!C18),"",ABS(Design!F18-Design!C18)) ->  | H10: =IF(ISBLANK(Design!H18),"",Design!H18) ->  | J10: =IF(ISBLANK(Design!M18),"",Design!M18) ->  | K10: =IF(ISBLANK(Design!L18),"",Design!L18) -> 
B11: =IF(ISBLANK(Design!B19),"",Design!B19) ->  | D11: =IF(ISBLANK(Design!C19),"",Design!C19) ->  | E11: to | F11: =IF(ISBLANK(Design!F19),"",Design!F19) ->  | G11: =IF(ISBLANK(Design!C19),"",ABS(Design!F19-Design!C19)) ->  | H11: =IF(ISBLANK(Design!H19),"",Design!H19) ->  | J11: =IF(ISBLANK(Design!M19),"",Design!M19) ->  | K11: =IF(ISBLANK(Design!L19),"",Design!L19) -> 
B12: =IF(ISBLANK(Design!B20),"",Design!B20) ->  | D12: =IF(ISBLANK(Design!C20),"",Design!C20) ->  | E12: to | F12: =IF(ISBLANK(Design!F20),"",Design!F20) ->  | G12: =IF(ISBLANK(Design!C20),"",ABS(Design!F20-Design!C20)) ->  | H12: =IF(ISBLANK(Design!H20),"",Design!H20) ->  | J12: =IF(ISBLANK(Design!M20),"",Design!M20) ->  | K12: =IF(ISBLANK(Design!L20),"",Design!L20) -> 
B13: =IF(ISBLANK(Design!B21),"",Design!B21) ->  | D13: =IF(ISBLANK(Design!C21),"",Design!C21) ->  | E13: to | F13: =IF(ISBLANK(Design!F21),"",Design!F21) ->  | G13: =IF(ISBLANK(Design!C21),"",ABS(Design!F21-Design!C21)) ->  | H13: =IF(ISBLANK(Design!H21),"",Design!H21) ->  | J13: =IF(ISBLANK(Design!M21),"",Design!M21) ->  | K13: =IF(ISBLANK(Design!L21),"",Design!L21) -> 
B14: =IF(ISBLANK(Design!B22),"",Design!B22) ->  | D14: =IF(ISBLANK(Design!C22),"",Design!C22) ->  | E14: to | F14: =IF(ISBLANK(Design!F22),"",Design!F22) ->  | G14: =IF(ISBLANK(Design!C22),"",ABS(Design!F22-Design!C22)) ->  | H14: =IF(ISBLANK(Design!H22),"",Design!H22) ->  | J14: =IF(ISBLANK(Design!M22),"",Design!M22) ->  | K14: =IF(ISBLANK(Design!L22),"",Design!L22) -> 
AA15: =SUM(AA7:AA14)/43560 -> 0.06804407713
C16: Describe Outlet: | F16: riprap
B18: AS-BUILT DATA
B20: W/W | D20: Reach | G20: Length | H20: Grade | J20: Average | K20: Waterway Width | P20: Waterway Area
B21: ID | J21: Depth | K21: Const. | N21: Seeded | P21: Const. | V21: Seeded
D23: Sta. | F23: Sta. | G23: feet | H23: % | J23: feet | K23: feet | N23: feet | P23: acres | V23: acres
E24: to
E25: to
E26: to
E27: to
E28: to
E29: to
E30: to
E31: to
B43: ESTIMATED QUANTITIES | M43: LANDUSER | O43: =IF(ISBLANK(Landuser),"",Landuser) -> 
M44: =IF(ISBLANK(County),"",County) ->  | Q44: COUNTY SWCD, INDIANA
C45: Grassed Waterway: | F45: =+SUM(G7:G14) -> 114 | H45: feet | M45: LOCATION | O45: =+IF(ISBLANK(Location),"",Location) -> WW1
N46: Sec. | O46: =+IF(ISBLANK(section),"",section) ->  | Q46: T | R46: =+IF(ISBLANK(Township),"",Township) ->  | S46: =IF(ISBLANK(twp),"",twp) ->  | U46: R | V46: =IF(ISBLANK(range),"",range) -> 
A47: DRAWING NO. IN-ENG-14P.XLS (REV. 8/99)
C48: =+IF(Defaults!I41>0,Defaults!H41,"---") -> 6 | D48: -in. Drainage Tubing: | G48: =+IF(Defaults!I41>0,Defaults!I41,"---") -> 1343 | H48: feet | L48: GRASSED WATERWAY
C50: =IF(Defaults!H42=Defaults!H41,"---",IF(Defaults!I41=0,"---",Defaults!H42)) -> --- | D50: -in. Drainage Tubing: | G50: =IF(Defaults!H42=Defaults!H41,"---",IF(Defaults!I41=0,"---",Defaults!I42)) -> --- | H50: feet
C52: Mulch Netting/Blanket: | G52: =1.1*SUM(Defaults!L5:L12) -> 0 | H52: sq. yd. | L52: U.S. DEPARTMENT OF AGRICULTURE
L53: NATURAL RESOURCES CONSERVATION SERVICE
C54: Seeding/Mulching: | F54: =AA15 -> 0.06804407713 | H54: acres | M54: Designed | N54: =IF(ISBLANK(Designer),"",Designer) ->  | Q54: Date | S54: Approved by | X54: Date
Q55: =TODAY() -> 2020-08-13
M56: Drawn | N56: =IF(ISBLANK(Designer),"",Designer) ->  | Q56: =TODAY() -> 2020-08-13 | S56: Title
C58: Other: | M58: Traced | S58: Title
M60: Checked | S60: Sheet | U60: Drawing No.
S61: No.
S62: of
V63: IN-ENG-14P

Sheet IN-ENG-14T
B1: CONSTRUCTION DATA
B3: W/W | D3: Reach | G3: Length | H3: Grade | J3: Design | K3: Design | N3: Bottom | P3: Side Slope | V3: Seeding
B4: ID | J4: Depth | K4: Top Width | N4: Width | P4: Ratio | V4: Width
J5: (D) | K5: (T) | N5: (B)
D6: Sta. | F6: Sta. | G6: feet | H6: % | J6: feet | K6: feet | N6: feet | P6: Z:1 | V6: feet
B7: =IF(ISBLANK(Design!B15),"",Design!B15) -> 1 | D7: =IF(ISBLANK(Design!C15),"",Design!C15) -> 18 | E7: to | F7: =IF(ISBLANK(Design!F15),"",Design!F15) -> 132 | G7: =IF(ISBLANK(Design!C15),"",ABS(Design!F15-Design!C15)) -> 114 | H7: =IF(ISBLANK(Design!H15),"",Design!H15) -> 7 | J7: =IF(ISBLANK(Design!M15),"",Design!M15) -> 0.5870765667 | K7: =IF(ISBLANK(Design!L15),"",Design!L15) -> 26 | N7: =IF(ISBLANK(Design!I15),"",IF(WW_Solve="Depth",Design!I15,Design!K15)) -> 26 | P7: =IF(ISBLANK(Design!J15),"",Design!J15) ->  | V7: =IF(ISBLANK(K7),"",K7) -> 26 | AA7: =IF(ISNUMBER(V7),V7*G7,"") -> 2964
B8: =IF(ISBLANK(Design!B16),"",Design!B16) ->  | D8: =IF(ISBLANK(Design!C16),"",Design!C16) ->  | E8: to | F8: =IF(ISBLANK(Design!F16),"",Design!F16) ->  | G8: =IF(ISBLANK(Design!C16),"",ABS(Design!F16-Design!C16)) ->  | H8: =IF(ISBLANK(Design!H16),"",Design!H16) ->  | J8: =IF(ISBLANK(Design!M16),"",Design!M16) ->  | K8: =IF(ISBLANK(Design!L16),"",Design!L16) ->  | N8: =IF(ISBLANK(Design!I16),"",IF(WW_Solve="Depth",Design!I16,Design!K16)) ->  | P8: =IF(ISBLANK(Design!J16),"",Design!J16) ->  | V8: =IF(ISBLANK(K8),"",K8) ->  | AA8: =IF(ISNUMBER(V8),V8*G8,"") -> 
B9: =IF(ISBLANK(Design!B17),"",Design!B17) ->  | D9: =IF(ISBLANK(Design!C17),"",Design!C17) ->  | E9: to | F9: =IF(ISBLANK(Design!F17),"",Design!F17) ->  | G9: =IF(ISBLANK(Design!C17),"",ABS(Design!F17-Design!C17)) ->  | H9: =IF(ISBLANK(Design!H17),"",Design!H17) ->  | J9: =IF(ISBLANK(Design!M17),"",Design!M17) ->  | K9: =IF(ISBLANK(Design!L17),"",Design!L17) ->  | N9: =IF(ISBLANK(Design!I17),"",IF(WW_Solve="Depth",Design!I17,Design!K17)) ->  | P9: =IF(ISBLANK(Design!J17),"",Design!J17) ->  | V9: =IF(ISBLANK(K9),"",K9) -> 
B10: =IF(ISBLANK(Design!B18),"",Design!B18) ->  | D10: =IF(ISBLANK(Design!C18),"",Design!C18) ->  | E10: to | F10: =IF(ISBLANK(Design!F18),"",Design!F18) ->  | G10: =IF(ISBLANK(Design!C18),"",ABS(Design!F18-Design!C18)) ->  | H10: =IF(ISBLANK(Design!H18),"",Design!H18) ->  | J10: =IF(ISBLANK(Design!M18),"",Design!M18) ->  | K10: =IF(ISBLANK(Design!L18),"",Design!L18) ->  | N10: =IF(ISBLANK(Design!I18),"",IF(WW_Solve="Depth",Design!I18,Design!K18)) ->  | P10: =IF(ISBLANK(Design!J18),"",Design!J18) -> 
B11: =IF(ISBLANK(Design!B19),"",Design!B19) ->  | D11: =IF(ISBLANK(Design!C19),"",Design!C19) ->  | E11: to | F11: =IF(ISBLANK(Design!F19),"",Design!F19) ->  | G11: =IF(ISBLANK(Design!C19),"",ABS(Design!F19-Design!C19)) ->  | H11: =IF(ISBLANK(Design!H19),"",Design!H19) ->  | J11: =IF(ISBLANK(Design!M19),"",Design!M19) ->  | K11: =IF(ISBLANK(Design!L19),"",Design!L19) ->  | N11: =IF(ISBLANK(Design!I19),"",IF(WW_Solve="Depth",Design!I19,Design!K19)) ->  | P11: =IF(ISBLANK(Design!J19),"",Design!J19) -> 
B12: =IF(ISBLANK(Design!B20),"",Design!B20) ->  | D12: =IF(ISBLANK(Design!C20),"",Design!C20) ->  | E12: to | F12: =IF(ISBLANK(Design!F20),"",Design!F20) ->  | G12: =IF(ISBLANK(Design!C20),"",ABS(Design!F20-Design!C20)) ->  | H12: =IF(ISBLANK(Design!H20),"",Design!H20) ->  | J12: =IF(ISBLANK(Design!M20),"",Design!M20) ->  | K12: =IF(ISBLANK(Design!L20),"",Design!L20) ->  | N12: =IF(ISBLANK(Design!I20),"",IF(WW_Solve="Depth",Design!I20,Design!K20)) ->  | P12: =IF(ISBLANK(Design!J20),"",Design!J20) -> 
B13: =IF(ISBLANK(Design!B21),"",Design!B21) ->  | D13: =IF(ISBLANK(Design!C21),"",Design!C21) ->  | E13: to | F13: =IF(ISBLANK(Design!F21),"",Design!F21) ->  | G13: =IF(ISBLANK(Design!C21),"",ABS(Design!F21-Design!C21)) ->  | H13: =IF(ISBLANK(Design!H21),"",Design!H21) ->  | J13: =IF(ISBLANK(Design!M21),"",Design!M21) ->  | K13: =IF(ISBLANK(Design!L21),"",Design!L21) ->  | N13: =IF(ISBLANK(Design!I21),"",IF(WW_Solve="Depth",Design!I21,Design!K21)) ->  | P13: =IF(ISBLANK(Design!J21),"",Design!J21) -> 
B14: =IF(ISBLANK(Design!B22),"",Design!B22) ->  | D14: =IF(ISBLANK(Design!C22),"",Design!C22) ->  | E14: to | F14: =IF(ISBLANK(Design!F22),"",Design!F22) ->  | G14: =IF(ISBLANK(Design!C22),"",ABS(Design!F22-Design!C22)) ->  | H14: =IF(ISBLANK(Design!H22),"",Design!H22) ->  | J14: =IF(ISBLANK(Design!M22),"",Design!M22) ->  | K14: =IF(ISBLANK(Design!L22),"",Design!L22) ->  | N14: =IF(ISBLANK(Design!I22),"",IF(WW_Solve="Depth",Design!I22,Design!K22)) ->  | P14: =IF(ISBLANK(Design!J22),"",Design!J22) -> 
AA15: =SUM(AA7:AA14)/43560 -> 0.06804407713
C16: Describe Outlet: | F16: =IF(ISBLANK('IN-ENG-14P'!F16:W16),"",'IN-ENG-14P'!F16:W16) -> riprap
B18: AS-BUILT DATA
B20: W/W | D20: Reach | G20: Length | H20: Grade | J20: Average | K20: Waterway Width | P20: Waterway Area
B21: ID | J21: Depth | K21: Const. | N21: Seeded | P21: Const. | V21: Seeded
D23: Sta. | F23: Sta. | G23: feet | H23: % | J23: feet | K23: feet | N23: feet | P23: acres | V23: acres
E24: to
E25: to
E26: to
E27: to
E28: to
E29: to
E30: to
E31: to
B43: ESTIMATED QUANTITIES | M43: LANDUSER | O43: =IF(ISBLANK(Landuser),"",Landuser) -> 
M44: =IF(ISBLANK(County),"",County) ->  | Q44: COUNTY SWCD, INDIANA
C45: Grassed Waterway: | F45: =+SUM(G7:G14) -> 114 | H45: feet | M45: LOCATION | O45: =+IF(ISBLANK(Location),"",Location) -> WW1
N46: Sec. | O46: =+IF(ISBLANK(section),"",section) ->  | Q46: T | R46: =+IF(ISBLANK(Township),"",Township) ->  | S46: =IF(ISBLANK(twp),"",twp) ->  | U46: R | V46: =IF(ISBLANK(range),"",range) -> 
A47: DRAWING NO. IN-ENG-14T.XLS (REV. 8/99)
C48: =+IF(Defaults!I41>0,Defaults!H41,"---") -> 6 | D48: -in. Drainage Tubing: | G48: =+IF(Defaults!I41>0,Defaults!I41,"---") -> 1343 | H48: feet | L48: GRASSED WATERWAY
C50: =IF(Defaults!H42=Defaults!H41,"---",IF(Defaults!I41=0,"---",Defaults!H42)) -> --- | D50: -in. Drainage Tubing: | G50: =IF(Defaults!H42=Defaults!H41,"---",IF(Defaults!I41=0,"---",Defaults!I42)) -> --- | H50: feet
C52: Mulch Netting/Blanket: | G52: =+'IN-ENG-14P'!G52:G53 -> 0 | H52: sq. yd. | L52: U.S. DEPARTMENT OF AGRICULTURE
L53: NATURAL RESOURCES CONSERVATION SERVICE
C54: Seeding/Mulching: | F54: =AA15 -> 0.06804407713 | H54: acres | M54: Designed | N54: =IF(ISBLANK(Designer),"",Designer) ->  | Q54: Date | S54: Approved by | X54: Date
Q55: =TODAY() -> 2020-08-13
M56: Drawn | N56: =IF(ISBLANK(Designer),"",Designer) ->  | Q56: =TODAY() -> 2020-08-13 | S56: Title
C58: Other: | D58: =+IF(ISBLANK('IN-ENG-14P'!D58:H61),"",'IN-ENG-14P'!D58:H61) ->  | M58: Traced | S58: Title
M60: Checked | S60: Sheet | U60: Drawing No.
S61: No.
S62: of
V63: IN-ENG-14T

Sheet DWA
D25: A fallow, mowed, or disked area shall be left on both sides of the waterway as shown. This area shall be used by the contractor to spread excess spoil. Spoil shall be spread in such a way as to ensure all water runoff will enter the constructed waterway practice without restriction. All spoil shall be temporarily seeded or planted to a crop.
P35: 12
K36: LANDUSER | M36: =IF(ISBLANK(Landuser),"",Landuser) -> 
K37: =IF(ISBLANK(County),"",County) ->  | O37: COUNTY SWCD, INDIANA
K38: LOCATION | M38: =+IF(ISBLANK(Location),"",Location) -> WW1
L39: Sec. | M39: =+IF(ISBLANK(section),"",section) ->  | O39: T | P39: =+IF(ISBLANK(Township),"",Township) ->  | Q39: =IF(ISBLANK(twp),"",twp) ->  | S39: R | T39: =IF(ISBLANK(range),"",range) -> 
J41: Designated Work Area
J45: U.S. DEPARTMENT OF AGRICULTURE
C46: =+IF(ISBLANK(Survey!C7),"",Survey!C7) ->  | J46: NATURAL RESOURCES CONSERVATION SERVICE
K47: Designed | L47: =IF(ISBLANK(Designer),"",Designer) ->  | O47: Date | Q47: Approved by | V47: Date
O48: =TODAY() -> 2020-08-13
K49: Drawn | L49: =IF(ISBLANK(Designer),"",Designer) ->  | O49: =TODAY() -> 2020-08-13 | Q49: Title
F51: =+IF(ISBLANK(Survey!E10),"",Survey!E10) ->  | K51: Traced | Q51: Title
K53: Checked | Q53: Sheet | S53: Drawing No.
Q54: No.
Q55: of
T56: IN-ENG-42

Sheet Specs
K21: Seeding Type | S21: Rate (lb/ac.)
K22: =IF(ISBLANK(SeedType1),"",SeedType1) ->  | S22: =IF(ISBLANK(SeedRate1),"",SeedRate1) -> 
K23: =IF(ISBLANK(SeedType2),"",SeedType2) ->  | S23: =IF(ISBLANK(SeedRate2),"",SeedRate2) -> 
K24: =IF(ISBLANK(SeedType3),"",SeedType3) ->  | S24: =IF(ISBLANK(SeedRate3),"",SeedRate3) -> 
K26: Mulch Type | S26: Rate (ton/ac.)
K27: =IF(ISBLANK(MulchType),"",MulchType) ->  | S27: =IF(ISBLANK(MulchRate),"",MulchRate) -> 
C28: Construction Tolerances
C29: Trapezoidal Waterway | K29: Temporary Seeding Type | S29: Rate (lb/ac.)
C30: Depth at Centerline: | G30: Grade to 0.2' below | K30: =IF(ISBLANK(TempSeedType),"",TempSeedType) ->  | S30: =IF(ISBLANK(TempSeedRate),"",TempSeedRate) -> 
C31: Depth at Toe: | G31: Grade to 0.2' above
C32: Bottom Width: | G32: 10% wider not to exceed 2' | K32: Lime | M32: Rate (ton/ac.) | S32: Or to a pH of:
C33: Parabolic Waterway | M33: =+IF(ISBLANK(LimeRate),"",LimeRate) -> 2 | S33: =+IF(ISBLANK(LimepH),"",LimepH) -> 6
C34: Depth at Centerline: | G34: Grade to 0.2' below
C35: Top Width: | G35: 10% wider not to exceed 5' | K35: Fertilizer | M35: Rate (lbs./ac.) | S35: Type:
M36: =+IF(ISBLANK(FertilizerRate),"",IF(FertilizerRate>500,500,FertilizerRate)) -> 500 | O36: =+IF(ISBLANK(LimeRate),"",LimeRate) -> 2 | Q36: =+IF(ISBLANK(LimeRate),"",LimeRate) -> 2 | S36: 12-12-12 or equiv.
K38: Erosion Control Blanket Type
K39: =+IF(ISBLANK(BlanketType), "", BlanketType) ->  | S39: or equivalent
K41: Date | L41: Lime | N41: Fertilizer | P41: Mulch | S41: Seed | V41: Temp. Seed
K42: * 3/1 - 5/15 | L42: Yes | N42: Yes | P42: Yes | S42: Yes | V42: No
K43: **5/16 - 5/31 | L43: Yes | N43: Yes | P43: Yes | S43: Yes | V43: No
K44: 5/16 - 7/31 | L44: Yes | N44: 1/3 of rate | P44: No | S44: No | V44: Yes
K45: 8/1 - 9/15 | L45: Yes | N45: Yes | P45: Yes | S45: Yes | V45: No
K46: ** 9/15 - 9/30 | L46: Yes | N46: Yes | P46: Yes | S46: Yes | V46: No
K47: 10/1 - 2/28 No Seeding
K48: * Switchgrass Spring Seeding 4/1 - 6/15
K49: ** Only Tall Fescue or Perennial Ryegrass with Mulch Cover
K50: Where waterway excavation is likely to expose subsoil with poor
K51: growing conditions, the waterway will be undercut 6" and
K52: backfilled with topsoil.
M53: LANDUSER | O53: =IF(ISBLANK(Landuser),"",Landuser) -> 
M54: =IF(ISBLANK(County),"",County) ->  | Q54: COUNTY SWCD, INDIANA
M55: LOCATION | O55: =+IF(ISBLANK(Location),"",Location) -> WW1
N56: Sec. | O56: =+IF(ISBLANK(section),"",section) ->  | Q56: T | R56: =IF(ISBLANK(twp),"",twp) ->  | U56: R | V56: =IF(ISBLANK(range),"",range) -> 
L58: GRASSED WATERWAY
L59: CONSTRUCTION SPECIFICATIONS / O&M
A60: WW Design (Rev 4/07)
L62: U.S. DEPARTMENT OF AGRICULTURE
L63: NATURAL RESOURCES CONSERVATION SERVICE
M64: Designed | N64: =IF(ISBLANK(Designer),"",Designer) ->  | Q64: Date | S64: Approved by | X64: Date
Q65: =TODAY() -> 2020-08-13
M66: Drawn | N66: =IF(ISBLANK(Designer),"",Designer) ->  | Q66: =TODAY() -> 2020-08-13 | S66: Title
M68: Traced | S68: Title
M70: Checked | S70: Sheet | U70: Drawing No.
S71: No.
S72: of

Sheet Defaults
A2: Default Values | O2: W/W Types Table: | P2: Parabolic | U2: Retardance
A3: (To change defaults, you must edit the template file) | P3: Trapezoidal | T3: Number | U3: Values | V3: I
H4: Beg. Blanket | I4: End Blank. | J4: Width | K4: Length | L4: Area | T4: 1 | U4: A | V4: 10
A5: Waterway Choice: | B5: Parabolic | D5: Temp. Seeding Type: | K5: =+ABS(I5-H5) -> 0 | L5: =+K5*BlanketW1/9 -> 0 | O5: W/W Solve for Table: | P5: Depth | T5: 2 | U5: B | V5: 7.643
B6: (Trapezoidal or Parabolic) | D6: Temp. Seeding Rate: | F6: lb/ac | K6: 0 | L6: =+K6*BlanketW2/9 -> 0 | P6: Width | T6: 3 | U6: C | V6: 5.601
K7: 0 | L7: =+K7*BlanketW3/9 -> 0 | T7: 4 | U7: D | V7: 4.436
A8: W/W Solve for Choice: | B8: Depth | D8: Mulch Type: | K8: 0 | L8: =+K8*BlanketW4/9 -> 0 | O8: Seeding Types | P8: Tall Fescue | T8: 5 | U8: E | V8: 2.876
B9: (Depth or Width) | D9: Mulching Rate: | F9: ton/ac | K9: 0 | L9: =+K9*BlanketW5/9 -> 0 | O9: Table: | P9: Low Endophyte Tall Fescue
D10: Lime Rate: | E10: 2 | F10: ton/ac | K10: 0 | L10: =+K10*BlanketW6/9 -> 0 | P10: Orchardgrass | T10: Retardance, Cap. = | V10: C
A11: Maximum Velocity: | B11: 5 | C11: fps | D11: Lime pH: | E11: 6 | K11: 0 | L11: =+K11*BlanketW7/9 -> 0 | P11: Timothy | T11: Retardance, Stab. = | V11: D
K12: 0 | L12: =+K12*BlanketW8/9 -> 0 | P12: Perennial Ryegrass
A13: Seeding Type 1: | D13: Blanket/Net Type: | K13: Total: | L13: =+SUM(L5:L12) -> 0 | M13: sq. yd. | P13: Smooth Bromegrass | T13: Stationing Increases:
A14: Seeding Type 2: | K14: +10% | L14: =+ROUNDUP(L13*1.1,0) -> 0 | M14: sq. yd. | P14: Redtop | T14: Upstream
A15: Seeding Type 3: | D15: Fertilization Rate: | E15: 500 | F15: lbs/ac. | P15: Alsike Clover | T15: Downstream
A16: Seeding Rate 1: | C16: lb/ac | E16: (not to exceed 500 lbs./ac.) | J16: Criteria | K16: Inverted Table | P16: Ladino Clover
A17: Seeding Rate 2: | C17: lb/ac | H17: Length | I17: Tile Sizes | J17: Length | K17: Length | L17: Tile Sizes | P17: Alfalfa
A18: Seeding Rate 3: | C18: lb/ac | D18: Stationing Increases: | E18: Upstream | H18: =SUM(IF($J$30:$J$37=4,$K$30:$K$37,0)) -> 0 | I18: 4 | J18: >0 | K18: =+H27 -> 0 | L18: =+I27 -> 24 | P18: Red Clover
E19: (Upstream or Downstream) | H19: =SUM(IF($J$30:$J$37=5,$K$30:$K$37,0)) -> 0 | I19: 5 | K19: =+H26 -> 0 | L19: =+I26 -> 21 | P19: Birdsfoot Trefoil
H20: =SUM(IF($J$30:$J$37=6,$K$30:$K$37,0)) -> 1343 | I20: 6 | K20: =+H25 -> 0 | L20: =+I25 -> 18 | P20: Korean Lespedeza
H21: =SUM(IF($J$30:$J$37=8,$K$30:$K$37,0)) -> 0 | I21: 8 | K21: =+H24 -> 0 | L21: =+I24 -> 15 | P21: Switchgrass
H22: =SUM(IF($J$30:$J$37=10,$K$30:$K$37,0)) -> 0 | I22: 10 | K22: =+H23 -> 0 | L22: =+I23 -> 12 | P22: Indiangrass
H23: =SUM(IF($J$30:$J$37=12,$K$30:$K$37,0)) -> 0 | I23: 12 | K23: =+H22 -> 0 | L23: =+I22 -> 10 | P23: Buffalograss
H24: =SUM(IF($J$30:$J$37=15,$K$30:$K$37,0)) -> 0 | I24: 15 | K24: =+H21 -> 0 | L24: =+I21 -> 8
H25: =SUM(IF($J$30:$J$37=18,$K$30:$K$37,0)) -> 0 | I25: 18 | K25: =+H20 -> 1343 | L25: =+I20 -> 6 | O25: Temp. Seeding Types: | P25: Wheat
H26: =SUM(IF($J$30:$J$37=21,$K$30:$K$37,0)) -> 0 | I26: 21 | K26: =+H19 -> 0 | L26: =+I19 -> 5 | P26: Rye
H27: =SUM(IF($J$30:$J$37=24,$K$30:$K$37,0)) -> 0 | I27: 24 | K27: =+H18 -> 0 | L27: =+I18 -> 4 | P27: Annual Ryegrass
P28: Oats
H29: Beg. Tile | I29: End Tile | J29: Size | K29: Length | P29: Sorghum - Sudan Grass
H30: 0 | I30: 2039 | K30: =+ABS(I30-H30) -> 2039 | P30: Corn
H31: 2039 | I31: 3382 | J31: 6 | K31: =+ABS(I31-H31) -> 1343 | P31: Pearl Millet
H32: 3382 | I32: 5707 | K32: 2325 | P32: Soybeans
K33: 0
K34: 0 | O34: Mulch Type Table: | P34: Straw
K35: 0
K36: 0 | O36: Project Title Options Table:
K37: 0 | O37: GRASSED WATERWAY
O38: GRASSED WATERWAY & LATERALS
O39: GRASSED WATERWAY & ROCK CHUTE
H40: Use Size: | I40: Length: | O40: GRASSED WATERWAY & BLOCK CHUTE
H41: =IF(I41=0,"",VLOOKUP(I41,H17:I27,2,FALSE)) -> 6 | I41: =DMAX(H17:J27,H17,J17:J18) -> 1343 | O41: GRASSED WATERWAY & ALUMINUM TOEWALL STRUCTURE
H42: =IF(I42=0,"",VLOOKUP(I42,K17:L27,2,FALSE)) -> 6 | I42: =DMIN(H17:J27,H17,J17:J18) -> 1343 | O42: GRASSED WATERWAY & GROUTED ROCK CHUTE
O43: GRASSED WATERWAY & CONCRETE TOEWALL STRUCTURE
O44: GRASSED WATERWAY & WOOD TOEWALL STRUCTURE
H45: Plotting Information | J45: Actual | K45: Use | O45: GRASSED WATERWAY & PIPE STRUCTURE
H46: Number of Stations: | J46: =COUNT(Survey!X11:X49) -> 0
H47: Minimum Station: | J47: =MIN(Survey!X11:X49) -> 0 | K47: 0 | O47: Project Index Options:
H48: Maximum Station: | J48: =MAX(Survey!X11:X49) -> 0 | K48: 350 | O48: PLAN VIEW
H49: Minimum Elevation: | J49: =FLOOR(MIN(Survey!Y11:Z49),1) -> 0 | K49: 100 | O49: PROFILE ALONG CENTERLINE
H50: Maximum Elevation: | J50: =CEILING(MAX(Survey!Y11:Z49),1) -> 0 | K50: 117.5 | O50: GRASSED WATERWAY DETAILS
H51: Plot Series: | I51: Plot? | O51: CONSTRUCTION SPECS/O&M
H52: Ex. Grnd. | I52: TRUE | O52: CROSS-SECTION
H53: Low Bank | I53: FALSE | O53: ROCK LINED CHUTE DETAILS
H54: P. Grade: | I54: FALSE | O54: BLOCK CHUTE DETAILS
H55: Last # Ser.: | I55: 1 | O55: ALUMINUM TOEWALL STRUCTURE DETAILS
H56: Location of Last Station to Plot: | K56: =ADDRESS(NumStat+10,24,1,1) -> $X$10 | O56: GROUTED ROCK CHUTE DETAILS
H57: Starting Elevation of Pln. Grade: | O57: CONCRETE TOEWALL STRUCTURE DETAILS
H58: Location of Last EG Elev. To Plot: | K58: =ADDRESS(NumStat+10,25,1,1) -> $Y$10 | O58: WOOD TOEWALL STRUCTURE DETAILS
H59: Location of Last LB El. To Plot: | K59: =ADDRESS(NumStat+10,26,1,1) -> $Z$10 | O59: PIPE STRUCTURE DETAILS
H60: Location of Last PG El. To Plot: | K60: =ADDRESS(P84+73,16,1,1) -> $P$75
H61: Location of Last PG Stat. : | K61: =ADDRESS(P84+73,15,1,1) -> $O$75 | P61: Job Titles
P62: District Conservationist
P63: Resource Conservationist
P64: Soil Conservationist
P65: Soil Conservation Technician
P66: Civil Engineering Technician
P67: Resource Specialist
P68: Ag. Conservation Specialist
P69: Technician
P70: Agricultural Engineer
P71: Civil Engineer
O73: Station | P73: Planned Grade
O74: =+Design!C15 -> 18 | P74: =+ElevPG -> 0
O75: =+Design!F15 -> 132 | P75: =IF(StatDir="Upstream",+P74+ABS(O74-O75)*Design!H15/100,+P74-ABS(O74-O75)*Design!H15/100) -> 7.98
O76: =+Design!F16 -> 0 | P76: =IF(Design!B16=Design!$B$15,IF(StatDir="Upstream",+P75+ABS(O75-O76)*Design!H16/100,+P75-ABS(O75-O76)*Design!H16/100),"") -> 
O77: =+Design!F17 -> 0 | P77: =IF(Design!B17=Design!$B$15,IF(StatDir="Upstream",+P76+ABS(O76-O77)*Design!H17/100,+P76-ABS(O76-O77)*Design!H17/100),"") -> 
O78: =+Design!F18 -> 0 | P78: =IF(Design!B18=Design!$B$15,IF(StatDir="Upstream",+P77+ABS(O77-O78)*Design!H18/100,+P77-ABS(O77-O78)*Design!H18/100),"") -> 
O79: =+Design!F19 -> 0 | P79: =IF(Design!B19=Design!$B$15,IF(StatDir="Upstream",+P78+ABS(O78-O79)*Design!H19/100,+P78-ABS(O78-O79)*Design!H19/100),"") -> 
O80: =+Design!F20 -> 0 | P80: =IF(Design!B20=Design!$B$15,IF(StatDir="Upstream",+P79+ABS(O79-O80)*Design!H20/100,+P79-ABS(O79-O80)*Design!H20/100),"") -> 
O81: =+Design!F21 -> 0 | P81: =IF(Design!B21=Design!$B$15,IF(StatDir="Upstream",+P80+ABS(O80-O81)*Design!H21/100,+P80-ABS(O80-O81)*Design!H21/100),"") -> 
O82: =+Design!F22 -> 0 | P82: =IF(Design!B22=Design!$B$15,IF(StatDir="Upstream",+P81+ABS(O81-O82)*Design!H22/100,+P81-ABS(O81-O82)*Design!H22/100),"") -> 
O84: Number of Grd. Break: | P84: =+COUNT(P74:P82) -> 2

Sheet Comments
A1: Comments:
A2: 1999 | B2: This workbook was originally created by Jill Davis, NRCS Engineer in 1999.
A4: 6/04 | B4: Version 1.13, revised 5/03, posted to website 6/04.
A6: 2/06 | B6: Unlocked 14P and 14T sheets so that seeding widths can be changed by user. 2/06
A7: 12/08 | B7: Updated IN-ENG-57L to ver 5_08
A9: 2/09 | B9: Fixed project info button to fill out IN-ENG-57L correctly
A10: 12/09 | B10: Fixed formatting on Profile sheet title block. Office 2007 update prevents auto resizing of profile chart window.
A12: 12/09 | B12: Added Work Limits Sheet
A13: 5/10 | B13: Updated seeding dates and changed "Work Limits" to "Designated Work Area"
